Cogmind - Beta 15 @@@ ROGUE MODE // 2025.06.26 @ 22:30:49 Player: Dendrocnid Result: Destroyed by S-10 Pest with Light Assault Rifle Performance ------------- Evolutions (0) 0 Regions Visited (1) 200 Robots Destroyed (10) 50 Value Destroyed (219) 219 Prototype IDs (2) 40 Alien Tech Used (0) 0 Bonus (0) 0 TOTAL SCORE: 509 Bonus ------- None Cogmind --------- Core Integrity 0/250 Matter 300/300 Energy 100/100 System Corruption 0% Temperature Cool (0) Movement Rolling (110) Ox2 Location -10/Materials Parts ------- > --- POWER (1) -------- (None) > --- PROPULSION (2) --- Wheel > --- UTILITY (2) ------ Large Storage Unit > --- WEAPON (2) ------- Hammer Hammer > --- INVENTORY (15) --- Light Treads Light Treads Wheel Wheel Wheel Compact Wheel Heat Sink Medium Matter Pod (100) High-capacity Matter Pod (51) Sensor Array Heavy EM Pulse Gun Heavy EM Pulse Gun Medium Laser Datajack Datajack Peak State ------------ > --- POWER ------------ Ion Engine > --- PROPULSION ------- Wheel Wheel > --- UTILITY ---------- Large Storage Unit Seismic Detector > --- WEAPON ----------- EM Pulse Gun Light Assault Rifle > --- INVENTORY -------- Light Ion Engine Light Treads Light Treads Wheel Wheel Wheel Wheel Compact Wheel Medium Laser Hammer [Rating: 8] Favorites ----------- Power Ion Engine Engine Ion Engine Propulsion Wheel Treads Light Treads Wheel Wheel Utility Seismic Detector Device Seismic Detector Storage Large Storage Unit Weapon Hammer Energy Gun EM Pulse Gun Ballistic Gun Light Assault Rifle Impact Weapon Hammer Build | -11 -10 ------- Run | Yrd Mat Slots Evolved . | . . Power . | . . Propulsion . | . . Utility . | . . Weapon . | . . Parts Attached 14 | 8 6 Power 2 | 2 . Engine 2 | 2 . Core . | . . Reactor . | . . Propulsion 5 | 2 3 Treads 2 | 2 . Leg . | . . Wheel 3 | . 3 Hover . | . . Flight . | . . Utility 3 | 2 1 Device 1 | 1 . Storage 2 | 1 1 Processor . | . . Hackware . | . . Protection . | . . Artifact . | . . Weapon 4 | 2 2 Energy Gun 1 | 1 . Energy Cannon . | . . Ballistic Gun 1 | 1 . Ballistic Cannon . | . . Launcher . | . . Special Weapon . | . . Impact Weapon 2 | . 2 Slashing Weapon . | . . Piercing Weapon . | . . Special Melee Weapon . | . . Unidentified Prototypes . | . . Parts Lost 5 | . 5 Power 2 | . 2 Propulsion 2 | . 2 Utility 1 | . 1 Weapon . | . . Highest Loss Streak 2 | . 2 To Critical Strikes . | . . Average Backups 11 | 3 12 Power . | . . Propulsion 5 | 2 6 Utility 1 | . 2 Weapon 2 | . 2 Tool/Special . | . . Unused Backups 15 | . 15 Power . | . . Propulsion 6 | . 6 Utility 4 | . 4 Weapon 3 | . 3 Tool/Special 2 | . 2 Average Slot Usage (%) 98 | . 98 Engine 13 | . 13 Treads 3 | . 3 Wheel 23 | . 23 Device 13 | . 13 Storage 14 | . 14 Energy Gun 2 | . 2 Ballistic Gun 2 | . 2 Impact Weapon 22 | . 22 Peak Build Rating 8 | 7 8 Average Rating 7 | 5 7 On Entrance 3 | . 7 Naked Turns . | . . Heaviest Build 30 | 14 30 Greatest Support 40 | 40 40 Greatest Overweight (x) 2 | . 2 Average Overweight (x) . | . . Largest Inventory Capacity 15 | 8 15 Average Capacity 13 | 7 14 Most Carried 15 | 6 15 Average Carried 11 | 4 12 Final Capacity 15 | 8 15 Final Carried 15 | 6 15 Class Distribution -------------------- 100% | Mutant Dominant Class ---------------- Mutant | -10/Materials Resources | -11 -10 ----------- Run | Yrd Mat Matter Collected 481 | 284 197 Remotely . | . . Salvage Created 343 | 107 236 Parts 9 | 5 4 Haulers Intercepted . | . . Recyclers Shooed . | . . Parts Field Recycled . | . . Retrieved Matter . | . . Parts Self-Destructed . | . . Prevented . | . . Kills | -11 -10 ------- Run | Yrd Mat Combat Hostiles Destroyed 7 | . 7 Melee 5 | . 5 Classes Destroyed 5 | 2 3 Tunneler 1 | 1 . Recycler 1 | 1 . Watcher 1 | . 1 Swarmer 2 | . 2 Grunt 5 | . 5 Best Kill Streak 2 | 2 2 Combat Bots Only 2 | . 2 Max Kills in Single Turn 1 | 1 1 Gunslinging . | . . Exploded . | . . Melee 1 | . 1 Uniques/NPCs Destroyed . | . . Combat | -11 -10 -------- Run | Yrd Mat Hostile Shots Fired 94 | . 94 Missed 29 | . 29 Hits 65 | . 65 Projectile 65 | . 65 Damage Taken 656 | . 656 Core 254 | . 254 Absorbed by Shields . | . . Core Remaining (%) 100 | 100 . Volleys Fired 5 | 4 1 Largest 2 | 2 2 Hottest 60 | 60 60 Shots Fired 10 | 8 2 Gun 10 | 8 2 Cannon . | . . Launcher . | . . Special . | . . Kinetic 5 | 4 1 Thermal . | . . Explosive . | . . Electromagnetic 5 | 4 1 Robot Hit Streak 3 | 3 3 Robot Miss Streak 1 | 1 1 Penetration Max . | . . Secondary Targets . | . . Shots Hit Robots 35 | 5 30 Core Hits 8 | 4 4 Critical Kills . | . . Critical Parts Destroyed 5 | . 5 Critical Strikes 5 | . 5 Smash 5 | . 5 Melee Attacks 45 | . 45 Impact 45 | . 45 Slashing . | . . Piercing . | . . Sneak Attacks . | . . Combat Hostiles . | . . Follow-up Attacks 5 | . 5 Damage Inflicted 852 | 52 800 Guns 74 | 52 22 Cannons . | . . Explosions 35 | . 35 Melee 743 | . 743 Ramming . | . . Kinetic 14 | 14 . Thermal 35 | . 35 Explosive . | . . Electromagnetic 60 | 38 22 Impact 743 | . 743 Slashing . | . . Piercing . | . . Highest Corruption . | . . Average Corruption . | . . Corruption Purged . | . . Corruption Blocked . | . . Overload Shots . | . . Overflow Damage 171 | . 171 Projectiles . | . . Explosions . | . . Melee 171 | . 171 Knockbacks 8 | . 8 Impact 8 | . 8 Kinetic . | . . Secondary . | . . Self-Inflicted Damage . | . . Shots . | . . Rammed . | . . Targets Rammed . | . . Kicked . | . . Crushed . | . . Highest Temperature 20 | 20 20 Average Temperature 12 | 12 15 Received Heat Transfer 282 | . 282 Siege Activations . | . . Martial Activations . | . . Shielding Activations . | . . Robots Disrupted . | . . Combat Hostiles . | . . Robots Corrupted 2 | . 2 Combat Hostiles 2 | . 2 Parts Fried 1 | . 1 Impact Corruptions 10 | . 10 Robots Melted . | . . Combat Hostiles . | . . Parts Melted . | . . Heat Transferred 50 | . 50 Parts Sabotaged . | . . Parts Stolen . | . . Parts Stripped . | . . Power Chain Reactions 1 | . 1 Alert | -11 -10 ------- Run | Yrd Mat Maximum Alert Level . | . . Low Security (%) 100 | 100 100 Level 1 . | . . Level 2 . | . . Level 3 . | . . Level 4 . | . . Level 5 . | . . High Security . | . . Max Security . | . . Peak Influence 67 | 5 67 Initial . | . . Average 12 | . 15 Influence Increases 291 | 10 281 Destroy 0b10 Robot/C 140 | . 140 Destroy 0b10 Robot/NC 15 | 10 5 Destroy Leader 32 | . 32 Successful Hack 9 | . 9 Destroy Structure 5 | . 5 Lose Combat Pursuer 90 | . 90 Influence Decreases 242 | 10 232 Time Decay 196 | 10 186 Lost Part 46 | . 46 Squads Dispatched 3 | . 3 Investigation 3 | . 3 Extermination . | . . Reinforcement . | . . Assault . | . . Garrison . | . . Intercept . | . . Searches Triggered . | . . Construction Impeded . | . . Haulers Reinforced . | . . Active Scanning Responses . | . . Cargo Convoy Interrupts . | . . Stealth | -11 -10 --------- Run | Yrd Mat Distress Signals . | . . Communications Jammed . | . . Distress Signals . | . . Times Spotted 19 | . 19 Peak Tracking Total 8 | . 8 Tactical Retreats 3 | . 3 Traps | -11 -10 ------- Run | Yrd Mat Traps Triggered 3 | . 3 Indirectly . | . . Trap Hack Attempts . | . . Triggered . | . . Disarmed . | . . Reprogrammed . | . . Reused . | . . Traps Extracted . | . . Installed . | . . Triggered . | . . Machines | -11 -10 ---------- Run | Yrd Mat Machines Disabled . | . . Max in Single Turn . | . . Machines Repaired . | . . Machines Dismantled . | . . Machines Sabotaged . | . . Overloaded Fab Kills . | . . Hacking | -11 -10 --------- Run | Yrd Mat Machines Accessed 5 | . 5 Terminals 5 | . 5 Fabricators . | . . Repair Stations . | . . Recycling Units . | . . Scanalyzers . | . . Garrison Access . | . . Total Hacks 14 | . 14 Successful 7 | . 7 Failed 7 | . 7 Catastrophic 2 | . 2 Database Lockouts . | . . Manual 9 | . 9 Terminals 14 | . 14 Fabricators . | . . Repair Stations . | . . Recycling Units . | . . Scanalyzers . | . . Garrison Access . | . . Terminal Hacks 3 | . 3 Prototype ID Bank 1 | . 1 Emergency Access Points 2 | . 2 Fabricator Hacks . | . . Repair Station Hacks . | . . Recycling Unit Hacks . | . . Scanalyzer . | . . Garrison Access Hacks . | . . Unauthorized Hacks 4 | . 4 Terminals 4 | . 4 Botnet 4 | . 4 Fabricators . | . . Repair Stations . | . . Recycling Units . | . . Scanalyzers . | . . Garrison Access . | . . Data Cores Recovered . | . . Used . | . . Hacking Detections 3 | . 3 Full Trace Events . | . . Feedback Events . | . . Feedback Blocked . | . . Robot Schematics Acquired . | . . Robots Built . | . . Authchips . | . . Time . | . . Total Robot Build Rating . | . . Part Schematics Acquired . | . . Parts Built . | . . Authchips . | . . Time . | . . Total Part Build Rating . | . . Parts Repaired . | . . Time . | . . Parts Recycled . | . . Recycled Matter . | . . Retrieved Matter . | . . Retrieved Components . | . . Parts Scanalyzed . | . . Part Schematics Acquired . | . . Parts Damaged . | . . Bothacking | -11 -10 ------------ Run | Yrd Mat Used RIF Installer . | . . Robots Hacked . | . . Non-combat . | . . Combat . | . . Robot Hacks Applied . | . . Relay Couplers Released . | . . Fabnet Peak Effective % . | . . Robots Rewired . | . . Allies Hacked . | . . Hacks Repelled . | . . Allies | -11 -10 -------- Run | Yrd Mat Total Allies . | . . Largest Group . | . . Highest-Rated Group . | . . Highest-Rated Ally . | . . Total Orders . | . . Ally Attacks . | . . Total Damage . | . . Kills . | . . Allies Corrupted . | . . Allies Melted . | . . Intel | -11 -10 ------- Run | Yrd Mat Active Infowar (turns) 662 | 38 624 Seismic 662 | 38 624 Robot Analysis Total . | . . Derelict Logs Recovered . | . . Drone Launches . | . . Drone Recoveries . | . . Exploration | -11 -10 ------------- Run | Yrd Mat Turns Passed 775 | 113 662 Spaces Moved 493 | 55 438 Core 2 | 2 . Treads 97 | 53 44 Legs . | . . Wheels 394 | . 394 Hover . | . . Flight . | . . Fastest Speed 50 | 50 95 Average Speed 107 | 156 101 Slowest Speed 160 | 160 160 Overloaded Moves . | . . Propulsion Burnouts . | . . Robots Hopped . | . . Potential Cave-ins . | . . Cave-ins Triggered . | . . Exploration Rate (%) 34 | 4 65 Regions Visited 1 Branch Regions . Pre-discovered Areas . | . . Known Exits Taken . | . . Unknown Exits Taken 1 | 1 . Scrap Searched . | . . Spaces Dug . | . . Terrain Destroyed 4 | . 4 Melee . | . . Projectile . | . . AOE 4 | . 4 Terrain Rammed . | . . Walls Destroyed . | . . Machines Disabled . | . . Actions | -11 -10 --------- Run | Yrd Mat Total 654 | 71 583 Wait 79 | . 79 Move 492 | 54 438 Hop . | . . Pick Up 20 | 5 15 Fast Attach 7 | 7 . Attach 2 | . 2 Detach . | . . Swap 6 | 1 5 Drop 5 | . 5 Fire 5 | 4 1 Melee 38 | . 38 Ram . | . . Kick . | . . Crush . | . . Escape Stasis . | . . Rewire . | . . Trap . | . . Miscellaneous . | . . Route ------- -11/Scrapyard -10/Materials (discovered 2 exits: [*Mat] / [*Min]) History --------- Turn | Location | Event 52 | -11/Scrapyard | Discovered new exit (range 14) 114 | -11/Scrapyard | Entered Materials 313 | -10/Materials | Build established: Mutant 495 | -10/Materials | Core integrity fell below 50% 597 | -10/Materials | Discovered new exit (range 11) 766 | -10/Materials | Core integrity fell below 20% 768 | -10/Materials | Discovered new exit (range 11) 776 | -10/Materials | Destroyed by S-10 Pest with Light Assault Rifle Last Messages --------------- 00683_ G-34 Mercenary suffers critical hit (Smash). 00683_ Destroyed Aluminum Leg. 00683_ G-34 Mercenary system corrupted by crushing effect. 00683_ Sml. Laser fried. 00683_ G-34 Mercenary destroyed. 00685_ Acquired 36 matter. 00738_ Seismic Detector destroyed. 00741_ S-10 Pest destroyed. 00746_ Destroyed Flight Unit. 00746_ S-10 Pest system corrupted by crushing effect. 00748_ S-10 Pest IFF system glitched. 00754_ S-10 Pest destroyed. 00761_ S-10 Pest IFF system glitched. 00767_ S-10 Pest misfires. 00768_ EXIT=FOUND 00769_ Wheel destroyed. 00775_ Lgt. Ion Engine destroyed. Map ----- +----------------------------------------------------+ | ???????????????????????????# # | | ???????????????????????????# # | | ???????????????###########?# # | | ???????????????# #?# # | | ???????????????# ### # | | ???????????##### / + | | ???????????# # ### # | | ???????????# %+= #?### # | | ???????????# # #???# # " | | ???????????# # #???# # " | | ??????#????# # % #???# ### | | ??????# ??# ###+#######???# #?? | | ??????# # #?# ???????? #?? | | ??????# + #?# ??????###?? | | ??????# # #?# ???????? | | ??????##+### ### #??????? | | ??????# ?????? | | ??????# #########????? | | ??????+ #????????????? | | ??????# s ####### #????????????? | | ??????# ss#?????? #????????????? | | ??????# #?????? #????????????? | | ??????# #?????? #????????????? | | ??????# #?????? #????????????? | | ??????# #?????? ????????????? | | ??????# a@#??????= #???????????? | | ?????# g #????? ?????????????? | | ????# #????????????????????? | | ????# g #????????????????????? | | ????# < #????????????????????? | | ????# #????????????????????? | | ????#"" ""#????????????????????? | | ????##"!!!"##????????????????????? | | ?????##"""##?????????????????????? | | ??????####???????????????????????? | | ?????????????????????????????????? | | ?????????????????????????????????? | | ?????????????????????????????????? | | | | | | | | | | | | | | | | | | | | | | | | | +----------------------------------------------------+ Best States ------------- Heat Dissipation 25 Energy Generation 10 Energy Capacity 250 Matter Stores 300 Matter Capacity 300 Sight Range 16 Terrain Scan Density 10 Evasion (%) 41 Recoil Reduction 2 Item Schematics ----------------- None Robot Schematics ------------------ None Fabricated ------------ Nothing Repaired ---------- Nothing Alien Tech Used ----------------- None Achievements -------------- None Challenges ------------ None Game ------ Seed LinkedBombardmentCapacitor Manual? 0 Play Time 00:12:50 Cumulative 153.2 hours Start 2025.06.26 @ 12:56:33 End 2025.06.26 @ 22:30:49 Sessions 2 Manual Loads 0 Difficulty Rogue Special Mode None Game No. 239 Rogue 239 Adventurer 0 Explorer 0 Win Type - Total 1 Types 1/0/0/0/0/0/0/0/0/0 Lore% 24 Gallery% 45 Achievement% 44 Wizard Run 0 Options --------- Layout 2 ASCII 0 Keyboard 0 Movement Mouse Keybinds 0 Fullscreen 1 Font 24/Smallcaps Map View 50x44 Zoom Use 0% Tactical HUD 1 Map Filters NONE Filters NONE Steam 1 RUN: 1e1e3443-e5b6-4193-9a91-b745a295f1f8